bitfinex/quotes_ETHUSD_20250413
["timestamp","ask_amount","ask_price","bid_price","bid_amount"]
[1744529523938,13.24778,1614.0,1613.9,9.7e-06]
[1744529525043,14.05688,1614.0,1613.9,9.7e-06]
[1744529531350,17.05688,1614.0,1613.9,9.7e-06]
[1744529532723,11.05488,1614.0,1613.9,9.7e-06]
[1744529532954,20.05191112,1614.0,1613.9,9.7e-06]
[1744529537229,13.50191112,1614.0,1613.9,9.7e-06]
[1744529537548,20.05191112,1614.0,1613.9,9.7e-06]
[1744529538495,26.16191112,1614.0,1613.9,9.7e-06]
[1744529538666,32.68191112,1614.0,1613.9,9.7e-06]
[1744529540086,26.16191112,1614.0,1613.9,9.7e-06]
[1744529540785,32.68191112,1614.0,1613.9,9.7e-06]
[1744529541300,26.16191112,1614.0,1613.9,9.7e-06]
[1744529545596,23.16191112,1614.0,1613.9,9.7e-06]
[1744529545912,19.61191112,1614.0,1613.9,9.7e-06]
[1744529546054,21.80381112,1614.0,1613.9,9.7e-06]
[1744529546453,18.69381112,1614.0,1613.9,0.7587097]
[1744529546903,16.24381112,1614.0,1613.9,0.7587097]
[1744529547086,15.69381112,1614.0,1613.9,0.7587097]
[1744529547281,18.69381112,1614.0,1613.9,0.7587097]
[1744529547503,19.24381112,1614.0,1613.9,0.7587097]
[1744529551302,16.24678,1614.0,1613.9,0.7587097]
[1744529556420,16.24678,1614.0,1613.9,9.7e-06]
[1744529557316,17.04188,1614.0,1613.9,9.7e-06]
[1744529557523,23.15188,1614.0,1613.9,9.7e-06]
[1744529558487,29.67188,1614.0,1613.9,9.7e-06]
[1744529559006,6.74885,1613.2,1613.1,0.02]
[1744529559211,12.74785,1613.2,1613.1,0.02]
[1744529566530,12.74785,1613.2,1613.1,0.8059]
[1744529567334,12.74785,1613.2,1613.1,0.02]
[1744529568659,13.24785,1613.2,1613.1,0.02]
[1744529569170,15.192498,1613.2,1613.1,0.02]
[1744529570532,6.19863,1613.3,1613.1,0.8059]
[1744529570533,12.39741,1613.3,1613.1,0.8059]
[1744529570754,6.19863,1613.3,1613.1,0.8059]
[1744529571266,6.19885,1613.2,1613.1,0.8059]
[1744529574439,6.19863,1613.3,1613.1,0.8059]
[1744529574672,6.74772,1613.5,1613.1,0.8059]
[1744529574673,6.1983,1613.4,1613.1,0.8059]
[1744529574852,12.39661,1613.4,1613.1,2.126388]
[1744529575065,6.1983,1613.4,1613.2,0.7859]
[1744529577305,12.19835,1613.6,1613.4,0.7859]
[1744529578759,6.001,1613.6,1613.4,0.7859]
[1744529579503,6.001,1613.6,1613.5,0.7859]
[1744529580211,12.19628,1613.9,1613.6,0.7859]
[1744529580505,12.19628,1613.9,1613.7,0.7859]
[1744529581272,12.19628,1613.9,1613.7,1.484221]
[1744529581604,6.0,1613.9,1613.7,1.484221]
[1744529583594,6.5,1613.9,1613.7,1.484221]
[1744529583797,12.69618,1613.9,1613.7,1.484221]
[1744529585102,6.5,1613.9,1613.7,1.484221]
[1744529585272,6.5,1613.9,1613.8,0.8018]
[1744529585473,0.5,1613.9,1613.8,7.7680531]
[1744529585894,65.36744,1614.1,1613.8,6.9662531]
[1744529586068,65.36744,1614.1,1613.9,0.8018]
[1744529587810,12.19444,1614.1,1613.9,0.8018]
[1744529588410,6.19578,1614.0,1613.7,0.7802]
[1744529588610,0.5,1614.0,1613.7,0.7802]
[1744529588910,0.5,1614.0,1613.9,6.97637]
[1744529589114,12.38973,1614.3,1614.0,0.7802]
[1744529589297,6.19486,1614.3,1614.0,0.7802]
[1744529589913,6.19502,1614.2,1614.0,0.7802]
[1744529592915,6.1954,1614.1,1614.0,0.7802]
[1744529593079,12.39114,1614.1,1613.9,0.7908]
[1744529593679,12.89114,1614.1,1613.9,0.7908]
[1744529594526,6.6954,1614.1,1613.9,0.7908]
[1744529595122,12.89101,1614.1,1613.9,0.7908]
[1744529595420,6.6954,1614.1,1613.9,0.7908]
[1744529595919,12.8911,1614.1,1613.9,0.7908]
[1744529596107,6.6954,1614.1,1613.9,0.7908]
[1744529596421,12.8911,1614.1,1613.9,0.7908]
[1744529596607,6.6954,1614.1,1613.9,0.7908]
[1744529596802,6.1966,1613.8,1613.6,6.8936848]
[1744529597021,6.1966,1613.8,1613.6,0.8237]
[1744529597323,12.39343,1613.8,1613.6,0.8237]
[1744529598624,12.39343,1613.8,1613.5,3.0]
[1744529598625,6.19693,1613.7,1613.4,0.8237]
[1744529598796,6.19788,1613.5,1613.2,0.8237]
[1744529598996,6.19788,1613.5,1613.2,1.527981]
[1744529599198,5.997,1613.6,1613.2,1.527981]
[1744529599199,6.19813,1613.4,1613.2,1.527981]
[1744529599521,6.19847,1613.3,1613.2,0.8237]
[1744529599723,6.19813,1613.4,1613.2,0.8237]
[1744529601695,6.19776,1613.5,1613.2,0.8237]
[1744529602593,12.39571,1613.5,1613.2,0.8237]
[1744529602831,6.19843,1613.4,1613.2,0.8237]
[1744529603033,6.19773,1613.5,1613.2,0.8237]
[1744529603193,6.19617,1613.9,1613.4,0.8254]
[1744529603392,6.19746,1613.6,1613.4,0.8254]
[1744529604553,6.19659,1613.8,1613.4,3.01841149]
[1744529604852,6.19659,1613.8,1613.6,0.8254]
[1744529605210,5.997,1613.9,1613.6,0.8254]
[1744529605211,12.19328,1613.9,1613.6,0.8254]
[1744529605639,12.19328,1613.9,1613.6,1.527692]
[1744529607326,12.19328,1613.9,1613.6,0.8254]
[1744529607527,18.38971,1613.9,1613.6,0.8254]
[1744529608127,12.19328,1613.9,1613.6,0.8254]
[1744529608951,18.38967,1613.9,1613.6,0.8254]
[1744529612631,12.19328,1613.9,1613.6,0.8254]
[1744529612833,12.19328,1613.9,1613.6,2.147438]
[1744529613684,0.5,1613.8,1613.6,2.147438]
[1744529614980,6.6966,1613.8,1613.6,2.147438]
[1744529622315,6.1966,1613.8,1613.6,2.147438]
[1744529623832,6.1966,1613.8,1613.7,0.29619659]
[1744529624324,6.1966,1613.8,1613.6,0.8254]
[1744529625517,6.1966,1613.8,1613.7,0.29629087]
[1744529626663,8.802388,1613.8,1613.7,0.29629087]
[1744529626805,6.19762,1613.6,1613.3,3.7567]
[1744529627005,6.19775,1613.5,1613.3,3.7567]
[1744529627343,6.19775,1613.5,1613.3,0.7567]
[1744529627516,6.19775,1613.5,1613.4,0.2963701]
[1744529627717,7.518923,1613.5,1613.4,0.2963701]
[1744529627917,6.19849,1613.3,1613.1,0.7767]
[1744529628229,6.1982,1613.4,1613.2,0.29639958]
[1744529628645,6.1982,1613.4,1613.3,0.29639958]
[1744529630036,12.19307,1613.7,1613.4,0.7567]
[1744529630267,6.19736,1613.6,1613.4,0.7567]
[1744529630771,6.19736,1613.6,1613.5,0.29636204]
[1744529631467,6.19775,1613.5,1613.2,9.16288149]
[1744529631671,6.19775,1613.5,1613.3,0.91628815]
[1744529631970,6.19775,1613.5,1613.4,0.2964103]
[1744529635628,6.19736,1613.6,1613.4,0.2964103]
[1744529636068,6.19736,1613.6,1613.5,0.2964103]
[1744529636660,6.19736,1613.6,1613.4,0.2964103]
[1744529637155,6.19736,1613.6,1613.5,0.2964103]
[1744529637556,6.1977,1613.5,1613.4,0.2964103]
[1744529637772,6.1977,1613.5,1613.3,0.2964103]
[1744529637958,6.1977,1613.5,1613.3,1.24233248]
[1744529638276,6.1977,1613.5,1613.4,0.2964103]
[1744529638843,6.19736,1613.6,1613.4,0.2964103]
[1744529639268,6.19736,1613.6,1613.4,1.0899103]
[1744529639479,12.39489,1613.6,1613.5,0.2964103]
[1744529639984,12.39489,1613.6,1613.4,0.7935]
[1744529641784,6.19736,1613.6,1613.4,0.7935]
[1744529642279,6.19736,1613.6,1613.5,0.29640824]
[1744529645761,6.19624,1613.9,1613.6,0.82]
[1744529645961,12.39269,1613.9,1613.6,3.01301149]
[1744529646161,6.19624,1613.9,1613.6,3.01301149]
[1744529646374,12.39264,1613.9,1613.7,0.29640824]
[1744529646696,6.19655,1613.8,1613.7,0.29640824]
[1744529648013,6.19655,1613.8,1613.5,6.49410824]
[1744529648146,6.19655,1613.8,1613.5,8.06460521]
[1744529648346,12.3933,1613.8,1613.6,0.29640824]
[1744529649009,6.19655,1613.8,1613.6,0.29640824]
[1744529649307,6.19655,1613.8,1613.7,0.29640824]
[1744529649672,6.19655,1613.8,1613.6,0.29640824]
[1744529650097,6.19655,1613.8,1613.7,0.29640824]
[1744529650699,12.39345,1613.8,1613.6,0.29640824]
[1744529651087,12.39345,1613.8,1613.7,0.29640824]
[1744529651515,12.39345,1613.8,1613.5,0.29640824]
[1744529651677,12.39345,1613.8,1613.6,0.29640824]
[1744529652105,6.19655,1613.8,1613.6,0.29640824]
[1744529652305,12.39327,1613.8,1613.6,0.29640824]
[1744529652516,12.39327,1613.8,1613.7,0.29640824]
[1744529652517,13.19667,1613.8,1613.7,0.29640824]
[1744529653282,6.1977,1613.5,1613.4,0.29640824]
[1744529653586,6.19749,1613.6,1613.4,0.29640824]
[1744529653788,6.19749,1613.6,1613.4,1.02789406]
[1744529653978,6.19749,1613.6,1613.5,0.29640824]
[1744529655720,6.197,1613.7,1613.5,0.29640824]
[1744529655923,6.19661,1613.8,1613.6,0.82]
[1744529656218,6.19661,1613.8,1613.6,1.11640824]
[1744529656387,6.19661,1613.8,1613.6,0.82]
[1744529656890,6.19661,1613.8,1613.7,0.29655342]
[1744529662054,6.94911,1613.8,1613.7,0.29655342]
[1744529662203,13.14603,1613.8,1613.4,10.37448694]
[1744529662403,13.14603,1613.8,1613.5,1.03744869]
[1744529662633,13.14603,1613.8,1613.6,0.29660552]
[1744529663141,13.14603,1613.8,1613.5,1.03744869]
[1744529663653,6.19702,1613.7,1613.5,1.03744869]
[1744529663862,6.19702,1613.7,1613.6,0.29663005]
[1744529666270,6.19738,1613.6,1613.3,2.98901149]
[1744529666775,12.39408,1613.7,1613.4,0.29679123]
[1744529667075,12.39408,1613.7,1613.5,0.29679123]
[1744529667587,12.39408,1613.7,1613.3,15.38580149]
[1744529667776,12.39408,1613.7,1613.4,1.53858015]
[1744529668775,12.39408,1613.7,1613.5,0.29680886]
[1744529668978,6.19732,1613.6,1613.4,1.53858015]
[1744529669154,12.39429,1613.7,1613.4,1.53858015]
[1744529669354,6.19702,1613.7,1613.5,0.29679664]
[1744529669783,6.19702,1613.7,1613.6,0.29679664]
[1744529670086,6.19702,1613.7,1613.5,0.29679664]
[1744529670264,6.19702,1613.7,1613.6,0.29679664]
[1744529670475,12.19262,1613.8,1613.6,0.29679664]
[1744529670672,12.19262,1613.8,1613.6,1.24697645]
[1744529670846,12.19262,1613.8,1613.7,0.29679664]
[1744529676554,7.02522,1613.8,1613.7,0.29679664]
[1744529681099,6.19662,1613.8,1613.7,0.29679664]
[1744529682705,6.9709,1614.2,1613.8,6.19636]
[1744529682901,6.1953,1614.2,1613.9,3.56444749]
[1744529683402,6.19467,1614.3,1614.0,0.29679664]
[1744529683791,6.19467,1614.3,1614.1,0.29679664]
[1744529683991,6.19467,1614.3,1614.1,1.04859664]
[1744529684191,0.5,1614.2,1614.1,1.04859664]
[1744529684391,0.5,1614.2,1614.1,1.7730253]
[1744529685290,6.19356,1614.6,1614.1,3.96603679]
[1744529685493,6.19356,1614.6,1614.4,0.7518]
[1744529685663,6.19332,1614.7,1614.4,0.7518]
[1744529685870,6.19332,1614.7,1614.5,2.19301149]
[1744529686195,6.19272,1614.8,1614.5,2.48980813]
[1744529686374,6.19272,1614.8,1614.5,2.19301149]
[1744529686577,6.19377,1614.6,1614.4,0.7518]
[1744529691716,6.19404,1614.5,1614.3,2.19301149]
[1744529692091,6.19404,1614.5,1614.2,0.7765]
[1744529692600,12.38661,1614.7,1614.3,8.38747149]
[1744529692917,6.19319,1614.7,1614.4,0.7765]
[1744529693212,6.19319,1614.7,1614.4,1.69289715]
[1744529693416,6.19348,1614.6,1614.4,1.69289715]
[1744529695806,6.19348,1614.6,1614.4,0.7765]
[1744529696006,12.38733,1614.6,1614.4,0.7765]
[1744529696691,12.38733,1614.6,1614.3,2.99561149]
[1744529698118,6.19395,1614.5,1614.3,0.8026]
[1744529698421,6.19484,1614.3,1614.0,3.8026]
[1744529699295,12.38981,1614.3,1614.0,3.8026]
[1744529699497,12.38981,1614.3,1614.1,0.38026]
[1744529699699,6.19484,1614.3,1614.1,0.38026]
[1744529700436,6.19501,1614.2,1614.0,0.8026]
[1744529700725,6.1954,1614.1,1613.9,2.99561149]
[1744529701339,12.38946,1614.3,1613.9,9.19160149]
[1744529701839,6.19387,1614.5,1614.1,6.19518]
[1744529701840,7.00935,1614.5,1614.1,6.19518]
[1744529702045,7.00935,1614.5,1613.8,6.1965]
[1744529702046,0.8154,1614.3,1613.8,0.47209063]
[1744529702207,6.19544,1614.1,1613.7,9.19228149]
[1744529702407,12.39121,1614.1,1613.8,1.21416116]
[1744529702847,6.19544,1614.1,1613.8,0.91922815]
[1744529703014,6.19544,1614.1,1613.9,2.19301149]
[1744529703348,6.19582,1614.0,1613.8,0.91922815]
[1744529703551,6.19639,1613.9,1613.5,9.19327149]
[1744529703719,6.19677,1613.8,1613.5,2.99561149]
[1744529704135,6.19708,1613.7,1613.5,2.99561149]
[1744529704339,12.39431,1613.7,1613.5,2.19301149]
[1744529704519,6.19732,1613.6,1613.4,8.33218015]
[1744529704725,6.19732,1613.6,1613.4,2.34118015]
[1744529704970,7.01239,1613.7,1613.4,2.34118015]
[1744529705152,6.19699,1613.7,1613.5,2.19301149]
[1744529705338,6.19699,1613.7,1613.5,2.64643065]
[1744529712280,6.99429,1613.6,1613.3,2.19301149]
[1744529712435,6.99429,1613.6,1613.1,21.2800048]
[1744529712436,6.19844,1613.4,1613.1,5.21301149]
[1744529712636,12.39689,1613.4,1613.1,5.21301149]
[1744529713176,6.99507,1613.3,1613.2,0.29512711]
[1744529713566,6.99507,1613.3,1613.1,0.02]
[1744529713567,6.19885,1613.2,1613.1,0.02]
[1744529714068,6.99435,1613.5,1613.1,9.18573149]
[1744529714250,6.19824,1613.4,1613.2,0.91857315]
[1744529714449,6.19824,1613.4,1613.1,2.98671149]
[1744529715550,12.39655,1613.4,1613.1,2.98671149]
[1744529716446,6.19824,1613.4,1613.1,2.98671149]
[1744529716648,6.9944,1613.5,1613.1,9.18573149]
[1744529716847,9.19597,1614.0,1613.1,9.18573149]
[1744529716848,13.15378,1613.7,1613.3,2.19301149]
[1744529717090,12.39408,1613.7,1613.4,0.8297]
[1744529717590,6.19695,1613.7,1613.4,0.8297]
[1744529720708,12.39411,1613.7,1613.4,0.8297]
[1744529722626,6.19695,1613.7,1613.4,0.8297]
[1744529722808,6.19695,1613.7,1613.4,7.02777]
[1744529722994,6.19695,1613.7,1613.5,0.702777]
[1744529723587,6.19695,1613.7,1613.4,7.02777]
[1744529724129,12.3941,1613.7,1613.4,0.8297]
[1744529724291,6.19695,1613.7,1613.4,0.8297]
[1744529724626,6.19695,1613.7,1613.4,7.02777]
[1744529725527,12.39415,1613.7,1613.4,0.8297]
[1744529725733,12.39415,1613.7,1613.4,1.83571526]
[1744529726031,6.19741,1613.6,1613.4,1.83571526]
[1744529729134,6.19693,1613.7,1613.2,2.96481149]
[1744529729299,6.19693,1613.7,1613.1,6.8617848]
[1744529729300,6.19829,1613.4,1613.1,6.8617848]
[1744529729502,6.1985,1613.3,1613.2,0.2959548]
[1744529730600,7.0148,1613.3,1613.2,0.2959548]
[1744529730833,6.19885,1613.2,1613.1,0.02]
[1744529731216,8.336515,1613.2,1613.1,0.02]
[1744529731412,9.00457259,1613.2,1613.1,0.02]
[1744529731615,9.55457259,1613.2,1613.1,0.02]
[1744529735915,12.55457259,1613.2,1613.1,0.02]
[1744529736542,13.05457259,1613.2,1613.1,1e-05]
[1744529740655,8.68827259,1613.2,1613.1,1e-05]
[1744529740834,7.36690759,1613.2,1613.1,1e-05]
[1744529746871,8.13730759,1613.2,1613.1,1e-05]
[1744529751577,11.68730759,1613.2,1613.1,1e-05]
[1744529752082,17.68230759,1613.2,1613.1,1e-05]
[1744529764257,16.36190759,1613.2,1613.1,1e-05]
[1744529764796,16.91190759,1613.2,1613.1,1e-05]
[1744529765100,19.87088235,1613.2,1613.1,1e-05]
[1744529766416,16.32088235,1613.2,1613.1,1e-05]
[1744529766569,1.16805759,1613.2,1613.1,0.81151]
[1744529767405,1.16805759,1613.2,1613.1,1.10836698]
[1744529768403,7.36690759,1613.2,1613.1,1.10836698]
[1744529769766,7.36690759,1613.2,1613.1,0.81151]
[1744529769966,1.16805759,1613.2,1613.1,1.10811322]
[1744529770769,1.16805759,1613.2,1613.1,1.83885854]
[1744529771074,0.66805759,1613.2,1613.1,1.83885854]
[1744529771465,6.19813,1613.4,1613.1,1.83885854]
[1744529771665,0.59465049,1613.2,1613.1,1.83885854]
[1744529771903,6.19813,1613.4,1613.1,1.83885854]
[1744529772406,0.59542607,1613.3,1613.1,1.83885854]
[1744529772572,0.59542607,1613.3,1613.1,1.54225532]
[1744529772772,6.19813,1613.4,1613.1,1.54225532]
[1744529773010,0.59536546,1613.3,1613.1,1.54225532]
[1744529773503,6.19813,1613.4,1613.1,1.54225532]
[1744529773702,0.59525667,1613.2,1613.1,1.54225532]
[1744529773902,6.19813,1613.4,1613.1,1.54225532]
[1744529774103,0.59525667,1613.2,1613.1,7.74149532]
[1744529774403,12.19273,1613.5,1613.2,0.7859]
[1744529775508,12.19273,1613.5,1613.2,1.55748953]
[1744529775711,6.1981,1613.4,1613.2,1.55748953]
[1744529775902,6.1981,1613.4,1613.2,0.7859]
[1744529777810,12.39648,1613.4,1613.2,0.7859]
[1744529778114,6.19885,1613.2,1613.1,1e-05]
[1744529779120,0.59525667,1613.2,1613.1,1e-05]
[1744529779880,0.59525667,1613.2,1613.1,1.08214579]
[1744529780082,6.19814,1613.4,1613.1,1.81030937]
[1744529780620,0.59766954,1613.3,1613.1,1.51407358]
[1744529780923,0.58611202,1613.3,1613.1,7.71326358]
[1744529781124,5.995,1613.5,1613.2,6.19885]
[1744529781415,0.59681519,1613.4,1613.3,0.7968]
[1744529789822,0.59681519,1613.4,1613.3,1.71565115]
[1744529790021,0.59681519,1613.4,1613.3,2.01192049]
[1744529791738,6.19735,1613.6,1613.3,2.01192049]
[1744529791943,0.54872382,1613.5,1613.3,2.01192049]
[1744529792145,0.54872382,1613.5,1613.3,1.71565115]
[1744529796657,0.54872382,1613.5,1613.4,0.29674036]
[1744529801567,7.56462382,1613.5,1613.4,0.29674036]
[1744529801774,6.19818,1613.4,1613.1,1.499028]
[1744529801928,0.54850628,1613.3,1613.1,1.499028]
[1744529802267,6.19818,1613.4,1613.2,0.29679275]
[1744529802629,6.19818,1613.4,1613.3,0.29679275]
[1744529803132,6.19818,1613.4,1613.2,0.29679275]
[1744529803557,13.21375,1613.5,1613.2,0.29679275]
[1744529803827,13.21375,1613.5,1613.3,0.29679275]
[1744529804364,13.21375,1613.5,1613.2,0.29679275]
[1744529804365,7.0159,1613.5,1613.2,0.29679275]
[1744529804729,7.0159,1613.5,1613.3,0.29679275]
[1744529805163,7.0159,1613.5,1613.2,0.29679275]
[1744529805458,13.21382,1613.5,1613.2,1.09629783]
[1744529805666,13.21382,1613.5,1613.3,0.29679275]
[1744529806254,6.19809,1613.4,1613.3,0.29679275]
[1744529806650,6.19809,1613.4,1613.2,0.29679275]
[1744529807450,7.0159,1613.5,1613.1,7.698258]
[1744529807658,6.1977,1613.5,1613.2,1.5232258]
[1744529807856,12.3949,1613.6,1613.2,1.5232258]
[1744529808047,12.39497,1613.6,1613.2,1.5232258]
[1744529808369,6.19775,1613.5,1613.3,0.2968263]
[1744529808868,0.54837139,1613.4,1613.2,1.5232258]
[1744529809096,0.54837139,1613.4,1613.2,1.67554838]
[1744529809868,0.54837139,1613.4,1613.3,0.29693369]
[1744529811727,0.54837139,1613.4,1613.1,2.260928]
[1744529811931,0.54837139,1613.4,1613.2,0.29694452]
[1744529812379,0.54837139,1613.4,1613.1,2.260928]
[1744529812530,0.54837139,1613.4,1613.1,3.1069768]
[1744529813164,0.54837139,1613.4,1613.2,0.29692705]
[1744529813559,0.54837139,1613.4,1613.3,0.29692705]
[1744529820719,6.74646139,1613.4,1613.3,0.29692705]
[1744529821459,6.74646139,1613.4,1613.1,3.1069768]
[1744529821737,6.74646139,1613.4,1613.2,0.60762187]
[1744529822033,11.03727,1613.3,1613.2,0.29692419]
[1744529822235,10.53765,1613.2,1613.1,1.499028]
[1744529822390,18.09231517,1613.2,1613.1,1.499028]
[1744529825436,11.08531649,1613.2,1613.1,1.499028]
[1744529825613,17.07931649,1613.2,1613.1,1.499028]
[1744529825810,19.50280287,1613.2,1613.1,1.499028]
[1744529826200,18.95280287,1613.2,1613.1,1.499028]
[1744529826504,19.50280287,1613.2,1613.1,1.499028]
[1744529828147,21.70162318,1613.2,1613.1,1.499028]
[1744529832873,27.81162318,1613.2,1613.1,1.499028]
[1744529833061,27.81162318,1613.2,1613.1,8e-06]
[1744529833361,27.81162318,1613.2,1612.3,1.1880397]
[1744529833362,6.20187,1612.5,1612.3,1.1880397]
[1744529833678,6.74074189,1612.4,1612.3,0.3967397]
[1744529836359,8.11774189,1612.4,1612.3,0.3967397]
[1744529836555,10.5797,1612.2,1612.1,0.02]
[1744529836758,16.5737,1612.2,1612.1,0.02]
[1744529836958,3.53683751,1612.2,1612.1,0.02]
[1744529837472,9.73953751,1612.2,1612.1,0.02]
[1744529837849,11.88375226,1612.2,1612.1,0.02]
[1744529838052,12.71075226,1612.2,1612.1,0.02]
[1744529839577,11.33375226,1612.2,1612.1,0.02]
[1744529839776,9.73953751,1612.2,1612.1,0.02]
[1744529842161,10.23953751,1612.2,1612.1,0.02]
[1744529844107,7.23953751,1612.2,1612.1,0.02]
[1744529845768,1.03683751,1612.2,1612.1,0.02]
[1744529846270,0.53683751,1612.2,1612.1,0.8361]
[1744529846484,0.53683751,1612.2,1612.1,2.160348]
[1744529846697,5.996,1612.4,1612.1,2.160348]
[1744529846898,0.44181238,1612.2,1612.1,2.160348]
[1744529847119,12.19799,1612.4,1612.1,2.160348]
[1744529847326,0.44181238,1612.2,1612.1,2.160348]
[1744529847527,12.19799,1612.4,1612.1,2.160348]
[1744529848025,0.44192131,1612.3,1612.1,2.160348]
[1744529848202,6.2027,1612.2,1612.1,0.02]
[1744529848402,6.64561555,1612.2,1612.1,0.02]
[1744529851021,0.44291555,1612.2,1612.1,0.7902]
[1744529851201,12.19798,1612.4,1612.1,0.7902]
[1744529851406,0.4054118,1612.3,1612.1,0.7902]
[1744529851644,0.4054118,1612.3,1612.2,0.7753]
[1744529851807,6.20165,1612.5,1612.2,0.7753]
[1744529852133,0.40552071,1612.4,1612.2,0.7753]
[1744529852334,6.60750071,1612.4,1612.2,0.7753]
[1744529855325,12.80980071,1612.4,1612.2,0.7753]
[1744529855837,6.60750071,1612.4,1612.2,0.7753]
[1744529856921,12.80970071,1612.4,1612.1,0.02]
[1744529859201,14.16629078,1612.4,1612.1,0.02]
[1744529861111,7.96409078,1612.4,1612.1,0.02]
[1744529861342,6.60750071,1612.4,1612.1,0.02]
[1744529862648,12.80969071,1612.4,1612.1,0.02]
[1744529863225,6.20232,1612.3,1612.1,0.02]
[1744529863546,6.51686214,1612.2,1612.1,0.02]
[1744529866037,7.06686214,1612.2,1612.1,0.02]
[1744529866235,9.09502835,1612.2,1612.1,0.02]
[1744529868566,6.51686214,1612.2,1612.1,0.02]
[1744529868725,0.31416214,1612.2,1612.1,0.02]
[1744529868926,0.22140454,1612.2,1612.1,6.22308]
[1744529869277,6.20235,1612.3,1612.1,0.31667314]
[1744529869480,0.20097937,1612.2,1612.1,0.31667314]
[1744529869669,0.20097937,1612.2,1612.1,0.02]
[1744529869865,6.40367937,1612.2,1612.1,0.02]
[1744529871585,7.74569231,1612.2,1612.1,0.02]
[1744529872081,12.09679231,1612.2,1612.1,0.02]
[1744529875183,1.54299231,1612.2,1612.1,0.02]
[1744529875342,0.20097937,1612.2,1612.1,0.02]
[1744529875745,9.7971,1612.4,1612.1,0.02]
[1744529875977,6.40236332,1612.2,1612.1,0.02]
[1744529878205,7.20346332,1612.2,1612.1,0.02]
[1744529878697,6.40236332,1612.2,1612.1,0.02]
[1744529878906,7.74295765,1612.2,1612.1,0.02]
[1744529879998,6.40236332,1612.2,1612.1,0.02]
[1744529883893,7.16286332,1612.2,1612.1,0.02]
[1744529884206,6.40236332,1612.2,1612.1,0.02]
[1744529892637,6.90236332,1612.2,1612.1,0.02]
[1744529897861,6.40236332,1612.2,1612.1,0.02]
[1744529899350,7.74040765,1612.2,1612.1,0.02]
[1744529900467,6.40236332,1612.2,1612.1,0.02]
[1744529908273,7.23246332,1612.2,1612.1,0.02]
[1744529913649,10.73896332,1612.2,1612.1,0.02]
[1744529922591,11.23896332,1612.2,1612.1,0.02]
[1744529923328,13.43778363,1612.2,1612.1,0.02]
[1744529923495,16.02205799,1612.2,1612.1,0.02]
[1744529923696,13.82323768,1612.2,1612.1,0.02]
[1744529924909,13.03663768,1612.2,1612.1,0.02]
[1744529925617,12.53663768,1612.2,1612.1,0.02]
[1744529928824,13.30173768,1612.2,1612.1,0.02]
[1744529932749,13.80173768,1612.2,1612.1,0.02]
[1744529934126,9.48663768,1612.2,1612.1,0.02]
[1744529934320,6.90236332,1612.2,1612.1,0.02]
[1744529935170,7.72066332,1612.2,1612.1,0.02]
[1744529935375,8.27066332,1612.2,1612.1,0.02]
[1744529935878,7.45236332,1612.2,1612.1,0.02]
[1744529936041,9.43809565,1612.2,1612.1,0.02]
[1744529937678,12.43809565,1612.2,1612.1,0.02]
[1744529942152,13.20189565,1612.2,1612.1,0.02]
[1744529942358,19.19789565,1612.2,1612.1,0.02]
[1744529943579,18.43409565,1612.2,1612.1,0.02]
[1744529943792,6.90236332,1612.2,1612.1,0.02]
[1744529943950,6.40236332,1612.2,1612.1,0.8066]
[1744529944285,6.34179288,1612.2,1612.1,0.8066]
[1744529948193,6.89179288,1612.2,1612.1,0.02]
[1744529948396,10.71749288,1612.2,1612.1,0.02]
[1744529948605,12.40949017,1612.2,1612.1,0.02]
[1744529949397,12.90949017,1612.2,1612.1,0.02]
[1744529953102,19.43449017,1612.2,1612.1,0.02]
[1744529953309,12.90949017,1612.2,1612.1,0.02]
[1744529953610,18.90549017,1612.2,1612.1,0.02]
[1744529953893,18.07979017,1612.2,1612.1,0.02]
[1744529954094,15.83779288,1612.2,1612.1,0.02]
[1744529954501,13.38779288,1612.2,1612.1,0.02]
[1744529956901,12.83779288,1612.2,1612.1,0.02]
[1744529957113,12.83779288,1612.2,1612.1,0.8146]
[1744529961704,12.33779288,1612.2,1612.1,0.8146]
[1744529969424,0.13909288,1612.2,1612.1,0.8146]
[1744529969628,6.34179288,1612.2,1612.1,0.8146]
[1744529983062,6.34179288,1612.2,1612.1,0.02]
[1744529986265,11.96312017,1612.2,1612.1,0.02]
[1744529986569,12.94931232,1612.2,1612.1,0.02]
[1744529987462,11.93382017,1612.2,1612.1,0.02]
[1744529991651,12.43382017,1612.2,1612.1,0.02]
[1744529994574,18.42682017,1612.2,1612.1,0.02]
[1744529999395,20.62804017,1612.2,1612.1,1e-05]
[1744529999566,6.20501,1611.6,1611.5,0.7977]
[1744530000993,12.19779,1611.7,1611.5,0.7977]
[1744530001198,12.37125915,1611.7,1611.5,0.7977]
[1744530001362,6.20501,1611.6,1611.5,0.7977]
[1744530004011,6.20431,1611.8,1611.5,0.7977]
[1744530004300,6.37822915,1611.7,1611.6,0.7977]
[1744530007406,6.20539,1611.6,1611.3,0.8115]
[1744530008004,12.41078,1611.6,1611.3,0.8115]
[1744530008406,12.41078,1611.6,1611.5,0.8115]
[1744530009141,6.20584,1611.4,1611.2,0.8115]
[1744530010029,6.20544,1611.5,1611.2,0.8115]
[1744530010596,6.20544,1611.5,1611.3,0.29655749]
[1744530010818,6.20544,1611.5,1611.4,0.8115]
[1744530014767,6.20504,1611.6,1611.4,0.8115]
[1744530014768,12.41028,1611.6,1611.4,0.8115]
[1744530015203,12.19863,1611.7,1611.4,0.8115]
[1744530015404,6.20507,1611.6,1611.4,0.8115]
[1744530015929,18.4035,1611.7,1611.4,0.8115]
[1744530016097,18.40352,1611.7,1611.4,0.8115]
[1744530016303,18.40352,1611.7,1611.4,1.513252]
[1744530016542,12.19863,1611.7,1611.5,0.29690958]
[1744530016713,12.19863,1611.7,1611.6,0.8179]
[1744530017114,8.994,1611.7,1611.4,1.519652]
[1744530017315,6.20514,1611.6,1611.4,0.8179]